bitfinex/quotes_ETHUSD_20250623
["timestamp","ask_amount","ask_price","bid_price","bid_amount"]
[1750638091001,9.455,2241.8,2241.1,1.21900097]
[1750638091199,9.455,2241.8,2241.0,0.8809]
[1750638091570,9.455,2241.8,2241.0,0.92551824]
[1750638091771,9.455,2241.8,2241.0,9.03975816]
[1750638091971,9.455,2241.8,2241.0,8.99513992]
[1750638092207,9.455,2241.8,2241.1,2.02596313]
[1750638092366,9.455,2241.8,2241.1,12.07057937]
[1750638092575,9.455,2241.8,2241.1,12.02596313]
[1750638093103,9.512,2241.8,2240.9,11.2644914]
[1750638093475,0.8136,2241.9,2241.1,0.0599]
[1750638093671,11.5048,2242.2,2241.4,0.0599]
[1750638093896,0.0617,2242.0,2241.2,0.8778]
[1750638094402,0.7604,2241.9,2241.2,0.8778]
[1750638094609,0.7604,2241.9,2241.2,0.95910399]
[1750638094908,2.10600671,2242.8,2241.8,8.11423992]
[1750638095112,0.8162,2242.6,2241.8,0.818]
[1750638095274,0.0617,2242.3,2241.5,0.8029]
[1750638095600,0.0617,2242.3,2241.3,0.0599]
[1750638095601,0.8162,2242.2,2241.8,0.818]
[1750638095803,8.2562,2242.2,2241.8,0.818]
[1750638096013,9.08799,2242.2,2241.8,0.818]
[1750638096170,0.0617,2241.8,2240.8,0.0599]
[1750638096371,0.0617,2241.6,2241.1,1.341783]
[1750638096604,0.0617,2241.4,2240.2,0.0599]
[1750638096773,0.0617,2241.0,2240.1,0.8029]
[1750638096975,0.8162,2240.8,2240.5,0.417037]
[1750638097300,0.8779,2240.8,2240.5,0.417037]
[1750638098017,0.0617,2240.7,2240.5,0.417037]
[1750638098185,0.0617,2240.7,2239.9,0.8628]
[1750638098382,0.0617,2240.7,2240.3,1.342278]
[1750638098711,0.0617,2240.7,2240.0,0.44728248]
[1750638098712,0.0617,2240.6,2240.0,0.44728248]
[1750638098911,1.04509,2240.8,2239.3,0.8628]
[1750638098912,0.8779,2240.4,2239.3,0.8628]
[1750638099210,0.8162,2240.2,2239.3,0.8628]
[1750638099511,2.1897,2240.1,2239.4,1.342742]
[1750638099674,0.8112,2240.0,2239.4,1.342742]
[1750638099873,0.8112,2240.0,2238.9,0.50758451]
[1750638100078,0.0617,2239.9,2239.0,1.05075845]
[1750638100278,0.0617,2239.9,2239.3,1.342874]
[1750638101516,0.8253,2239.8,2239.3,1.342874]
[1750638101690,0.0617,2239.7,2239.3,1.342874]
[1750638101885,2.129,2239.6,2239.3,1.342874]
[1750638102088,2.129,2239.6,2238.4,0.55]
[1750638102089,0.0617,2239.3,2238.5,0.0599]
[1750638102386,0.887,2239.2,2238.4,1.343273]
[1750638102601,0.0617,2238.9,2237.6,0.0599]
[1750638102792,0.8253,2238.7,2237.7,1.343273]
[1750638102990,2.1907,2238.6,2237.7,1.343273]
[1750638103683,0.0617,2238.4,2237.3,0.0599]
[1750638103910,0.8253,2238.3,2237.5,1.343861]
[1750638104109,0.8253,2238.3,2237.3,0.0599]
[1750638104420,0.8253,2238.3,2237.4,1.343878]
[1750638104822,0.8253,2238.3,2237.5,10.0]
[1750638105020,0.8253,2238.3,2237.4,19.343878]
[1750638105021,0.0617,2238.2,2237.4,19.343878]
[1750638105346,2.129,2238.6,2237.4,18.0]
[1750638105347,0.8253,2237.9,2237.4,18.0]
[1750638105652,2.2167,2237.8,2237.4,18.0]
[1750638106218,0.0617,2237.7,2237.4,18.0]
[1750638106431,0.7517,2237.6,2237.4,18.0]
[1750638106631,0.7517,2237.6,2236.8,1.344288]
[1750638107119,8.11423992,2238.5,2236.8,1.344288]
[1750638107120,0.0617,2238.5,2237.1,8.11423992]
[1750638107321,0.0617,2238.5,2237.0,0.0599]
[1750638107322,2.155,2238.4,2237.6,0.0599]
[1750638107552,2.155,2238.4,2237.2,0.86211261]
[1750638107553,0.7583,2238.3,2237.2,10.81741399]
[1750638107720,0.7583,2238.3,2237.3,0.0599]
[1750638108946,0.8151,2238.1,2237.2,0.81741399]
[1750638109149,0.8151,2237.9,2236.8,2.53915845]
[1750638109344,2.156,2237.8,2236.9,0.25990584]
[1750638109546,8.2886,2237.7,2236.8,0.44087045]
[1750638109750,8.2886,2237.7,2236.7,1.404254]
[1750638109922,11.285,2237.6,2236.7,1.79032104]
[1750638110122,0.7669,2237.5,2236.7,0.44596704]
[1750638110310,0.7669,2237.5,2236.4,1.404416]
[1750638110311,1.20519,2237.4,2236.4,1.404416]
[1750638110516,2.156,2237.3,2236.4,1.404416]
[1750638111434,0.7601,2237.0,2235.2,0.69965936]
[1750638111630,0.8,2235.9,2234.7,0.0599]
[1750638111831,0.0399,2235.6,2234.5,0.43688211]
[1750638112055,0.7601,2235.5,2234.4,0.7977]
[1750638112236,0.7601,2235.5,2234.3,0.0599]
[1750638112937,1.3101,2235.2,2234.1,1.45836371]
[1750638113149,2.1959,2235.1,2234.1,1.45836371]
[1750638113318,7.493,2235.0,2234.1,1.0]
[1750638113513,0.7601,2235.2,2234.4,0.0599]
[1750638113748,10.738,2235.8,2234.6,0.7977]
[1750638113954,2.9181,2235.7,2235.0,10.0599]
[1750638114144,2.158,2236.2,2235.6,0.0599]
[1750638114336,0.7601,2236.4,2235.6,0.0599]
[1750638114337,2.9181,2236.4,2235.6,1.19038549]
[1750638114537,2.9181,2236.4,2235.6,1.14566]
[1750638114727,2.9181,2236.4,2235.1,0.7977]
[1750638114928,2.9181,2236.4,2235.3,0.0599]
[1750638115330,2.9181,2236.4,2235.4,10.0]
[1750638115540,9.663,2236.3,2235.5,0.0599]
[1750638116464,0.55,2236.2,2235.1,0.8576]
[1750638116757,0.55,2236.2,2234.8,0.2860594]
[1750638116758,0.0399,2235.9,2234.8,0.2860594]
[1750638117057,0.55,2235.7,2234.8,0.2261594]
[1750638117356,11.295,2235.7,2234.8,0.2261594]
[1750638117554,1.42581,2235.6,2234.8,0.2261594]
[1750638117726,7.508,2235.5,2234.8,0.2261594]
[1750638118356,0.8073,2235.4,2234.8,0.2261594]
[1750638118654,0.0399,2235.2,2234.8,0.2261594]
[1750638119091,0.5899,2234.9,2234.8,0.2261594]
[1750638119247,1.3805,2234.9,2234.8,0.2261594]
[1750638120165,0.55,2234.7,2234.1,1.0]
[1750638120368,0.7906,2234.4,2234.1,1.0]
[1750638120681,1.13406,2234.3,2234.1,1.0]
[1750638120984,2.159,2234.6,2234.2,0.0599]
[1750638121142,2.159,2234.6,2234.1,1.0]
[1750638121346,2.159,2234.6,2234.2,0.0599]
[1750638121575,2.159,2234.6,2234.1,1.0]
[1750638121786,2.159,2234.6,2234.2,0.0599]
[1750638121987,2.159,2234.6,2234.1,1.0]
[1750638122192,10.0,2235.1,2234.1,1.0599]
[1750638122399,9.675,2235.0,2234.3,0.0599]
[1750638122641,0.7906,2235.2,2234.3,0.0599]
[1750638122753,9.68,2234.9,2234.3,0.0599]
[1750638123499,9.679,2234.8,2234.2,0.04475103]
[1750638123801,9.679,2234.8,2234.1,1.0]
[1750638123802,10.6469,2234.8,2234.1,1.0]
[1750638124261,0.7865,2234.7,2234.1,1.0]
[1750638124581,9.683,2234.6,2234.1,1.0]
[1750638124785,9.683,2234.6,2234.1,1.0615]
[1750638125190,0.8096,2235.2,2234.2,0.55]
[1750638125375,2.159,2234.9,2234.5,0.0615]
[1750638125849,2.159,2234.9,2234.6,0.779]
[1750638126052,2.159,2234.9,2234.6,0.8405]
[1750638126347,2.159,2234.9,2234.7,0.0615]
[1750638127588,2.159,2234.9,2234.6,0.779]
[1750638127751,2.159,2234.9,2234.7,0.0615]
[1750638127956,2.159,2234.9,2234.6,0.779]
[1750638128156,2.159,2234.9,2234.7,0.0615]
[1750638129202,2.159,2234.9,2234.6,0.779]
[1750638129500,2.159,2234.9,2234.3,0.30055]
[1750638130192,0.8309,2234.8,2234.2,10.7581]
[1750638130393,0.8309,2234.8,2234.2,0.7581]
[1750638131705,0.8309,2234.8,2234.1,1.0]
[1750638132273,0.5899,2234.7,2234.1,1.0]
[1750638132514,0.35798,2234.7,2234.1,1.0]
[1750638132674,2.16,2234.6,2234.2,0.04476084]
[1750638132875,2.16,2234.6,2234.3,0.0615]
[1750638133194,2.16,2234.6,2234.2,0.0615]
[1750638133800,2.16,2234.6,2234.1,1.0]
[1750638134568,2.16,2234.6,2234.2,0.0615]
[1750638134868,2.16,2234.6,2234.3,0.8253]
[1750638135098,2.16,2234.6,2234.2,0.0615]
[1750638135293,2.16,2234.6,2234.1,1.0]
[1750638136198,2.16,2234.6,2234.2,0.0615]
[1750638136910,9.764,2234.6,2234.1,1.0]
[1750638137321,0.7928,2235.1,2234.4,1.3494]
[1750638137601,2.236,2235.5,2234.7,0.55]
[1750638137807,2.236,2235.5,2234.8,1.055]
[1750638138009,2.236,2235.5,2234.8,1.09974019]
[1750638138221,2.236,2235.5,2234.9,0.0615]
[1750638138426,2.236,2235.5,2234.6,0.55]
[1750638138576,2.236,2235.5,2234.7,0.0615]
[1750638138774,2.236,2235.5,2234.8,0.55]
[1750638138992,2.236,2235.5,2235.0,0.0615]
[1750638139729,9.765,2235.5,2235.0,11.25397933]
[1750638139876,9.765,2235.5,2235.1,0.0615]
[1750638140215,9.765,2235.5,2235.0,10.7979]
[1750638140416,9.765,2235.5,2235.2,0.0615]
[1750638140618,9.765,2235.5,2235.0,10.7979]
[1750638141116,9.765,2235.5,2235.1,0.0615]
[1750638141629,0.8029,2236.1,2235.3,0.0615]
[1750638141789,0.8029,2236.1,2235.6,0.0615]
[1750638141790,2.236,2235.8,2235.6,0.0615]
[1750638141984,2.236,2235.8,2235.5,0.8231]
[1750638142187,2.236,2235.8,2235.6,0.0615]
[1750638142433,10.756,2236.2,2235.6,0.0615]
[1750638142728,9.77,2236.0,2235.6,0.0615]
[1750638143087,9.77,2236.0,2235.5,0.7616]
[1750638143282,9.77,2236.0,2235.6,0.0615]
[1750638143485,2.236,2236.0,2235.6,0.04472712]
[1750638143725,9.766,2236.5,2235.9,0.8222]
[1750638143955,10.7426,2236.5,2235.9,0.8669201]
[1750638144289,9.766,2236.5,2235.9,0.8669201]
[1750638144687,2.236,2236.5,2235.9,0.8669201]
[1750638144887,7.529,2236.4,2235.9,0.8054201]
[1750638145128,7.529,2236.4,2236.0,0.0615]
[1750638146011,0.798,2237.0,2236.0,0.0615]
[1750638146201,11.33672741,2236.9,2236.0,0.0615]
[1750638146400,0.41652656,2236.8,2236.0,0.0615]
[1750638146596,0.41652656,2236.7,2236.0,0.0615]
[1750638146900,10.9202,2236.9,2236.0,0.0615]
[1750638146901,9.759,2236.6,2236.0,0.10621828]
[1750638147096,2.235,2236.6,2236.2,0.0615]
[1750638147304,9.755,2236.6,2236.1,0.55]
[1750638147487,10.754,2237.1,2236.4,0.812]
[1750638147695,2.235,2236.7,2236.4,0.812]
[1750638147982,2.235,2236.7,2236.6,0.6115]
[1750638148199,7.52,2237.0,2236.6,0.6115]
[1750638148401,2.235,2237.1,2236.6,0.0615]
[1750638148583,2.235,2237.1,2236.5,0.55]
[1750638149007,2.235,2237.1,2236.5,10.0]
[1750638149212,2.02398958,2237.3,2236.6,20.84950693]
[1750638149424,2.235,2237.5,2237.0,0.8259]
[1750638149923,2.235,2237.5,2237.1,0.0615]
[1750638150728,3.0209,2237.9,2237.3,0.0615]
[1750638150930,2.235,2237.9,2237.3,1.15412612]
[1750638151089,2.235,2237.9,2236.7,0.8241]
[1750638151090,0.832,2237.8,2236.7,0.8241]
[1750638151292,0.832,2237.8,2236.8,0.0615]
[1750638151521,9.764,2237.7,2236.9,0.55]
[1750638151827,0.832,2237.8,2237.0,0.04469689]
[1750638152124,9.763,2237.6,2236.9,0.55]
[1750638152430,9.763,2237.6,2237.0,0.0446969]
[1750638152787,9.763,2237.6,2237.0,10.0446969]
[1750638153130,10.752,2238.0,2237.4,0.0615]
[1750638153330,18.276,2238.0,2237.4,0.0615]
[1750638154043,10.752,2238.0,2237.4,0.0615]
[1750638154339,7.523,2237.9,2237.4,0.0615]
[1750638154640,7.523,2237.9,2237.3,0.92069072]
[1750638154843,7.523,2237.9,2237.5,10.0566]
[1750638155248,12.986,2238.0,2237.5,10.0566]
[1750638155429,7.91,2239.4,2237.5,10.0566]
[1750638155430,0.7595,2238.6,2237.9,0.8117]
[1750638155747,0.7595,2238.3,2237.3,0.8117]
[1750638155948,2.2739,2238.2,2237.3,0.8117]
[1750638156243,7.82534,2238.1,2237.4,8.18997221]
[1750638156438,0.30334,2238.1,2237.5,0.55]
[1750638156653,7.523,2238.0,2237.1,10.0]
[1750638156842,7.523,2238.0,2237.0,0.7823]
[1750638158723,0.8092,2237.9,2237.0,0.7823]
[1750638159325,0.0399,2237.8,2237.0,0.7823]
[1750638159563,0.87711,2237.8,2237.0,0.7823]
[1750638160024,0.8092,2237.9,2237.1,10.0]
[1750638160657,7.516,2238.0,2237.6,0.0566]
[1750638162055,7.516,2238.0,2237.5,0.8389]
[1750638162240,7.516,2238.0,2237.6,0.0566]
[1750638162759,7.516,2238.0,2237.7,0.0566]
[1750638162957,2.234,2238.2,2237.8,0.0566]
[1750638163122,7.51,2238.3,2237.8,0.0566]
[1750638163322,7.51,2238.3,2237.8,0.04468021]
[1750638163533,2.234,2238.6,2238.0,10.8265]
[1750638163761,7.51,2238.7,2238.3,0.0566]
[1750638163926,7.51,2238.7,2238.3,0.10127103]
[1750638164366,7.51,2238.7,2238.3,0.0566]
[1750638164574,7.51,2238.7,2238.1,0.55]
[1750638165270,7.51,2238.7,2237.7,0.7699]
[1750638165470,0.8316,2238.5,2237.7,0.7699]
[1750638165973,2.218,2238.4,2237.7,0.7699]
[1750638166170,2.218,2238.4,2237.6,11.14049]
[1750638166360,0.0399,2238.3,2237.6,1.08389]
[1750638166566,0.0399,2238.3,2237.6,0.4452847]
[1750638166770,0.0399,2238.3,2237.5,0.55]
[1750638166954,0.0399,2238.3,2237.4,0.7735]
[1750638167563,0.8316,2238.5,2237.7,0.55]
[1750638167798,8.3366,2238.5,2237.6,10.0566]
[1750638167985,9.39605,2238.5,2237.6,11.95413825]
[1750638168361,9.43595,2238.5,2237.6,11.95413825]
[1750638168568,8.3366,2238.5,2237.9,10.0566]
[1750638168766,7.505,2238.5,2238.0,0.81147813]
[1750638169085,3.007,2238.8,2238.0,0.8234]
[1750638169285,7.503,2238.7,2238.0,0.8234]
[1750638170188,7.503,2238.7,2238.1,0.55]
[1750638170484,7.503,2238.7,2238.1,11.68734]
[1750638171088,7.503,2238.7,2237.4,9.23938908]
[1750638171089,0.7504,2238.5,2237.7,10.0]
[1750638171274,0.7504,2238.5,2237.7,0.0566]
[1750638171475,0.7504,2238.5,2237.7,8.24656519]
[1750638171679,0.7504,2238.5,2237.8,0.55]
[1750638171883,0.7504,2238.5,2237.9,0.04467813]
[1750638172061,0.7504,2238.5,2237.8,0.55]
[1750638172263,0.7504,2238.5,2237.8,1.42518825]
[1750638174289,0.7903,2238.5,2237.7,0.0566]
[1750638177812,0.7903,2238.5,2237.6,0.49095246]
[1750638177813,0.7903,2238.5,2237.6,0.44626633]
[1750638178048,0.7903,2238.5,2237.5,10.0]
[1750638178315,0.7504,2238.5,2237.7,8.20188251]
[1750638178535,10.4524,2238.5,2237.8,0.91987011]
[1750638179173,10.4524,2238.5,2238.1,0.0566]
[1750638179375,9.702,2238.5,2238.2,0.0566]
[1750638179523,2.218,2238.5,2238.2,0.0566]
[1750638179722,2.218,2238.5,2238.1,10.0]
[1750638179954,7.481,2238.8,2238.2,0.0566]
[1750638180146,7.481,2238.8,2238.1,10.0]
[1750638180320,7.481,2238.8,2237.9,0.0566]
[1750638180524,0.0399,2238.6,2237.7,0.7986]
[1750638180724,0.7805,2238.5,2237.5,0.44935421]
[1750638180924,0.7805,2238.2,2236.5,0.7986]
[1750638181158,0.7805,2238.0,2236.5,2.142689]
[1750638181378,0.7805,2237.8,2236.5,0.7986]
[1750638181539,0.7805,2237.6,2236.5,0.7986]
[1750638181732,10.78405,2238.1,2236.5,0.45418136]
[1750638181733,0.7805,2237.3,2236.5,0.45418136]
[1750638181968,9.707,2237.2,2236.4,10.0566]
[1750638182264,9.707,2237.2,2236.5,1.82018825]
[1750638182481,0.7805,2237.3,2236.7,10.0566]
[1750638182629,2.218,2237.5,2237.1,0.0566]
[1750638182846,10.74,2237.8,2237.3,10.0]
[1750638183052,2.218,2238.0,2237.6,10.0]
[1750638183579,2.218,2238.0,2237.7,0.057]
[1750638183755,2.218,2238.0,2237.7,0.48615945]
[1750638183961,2.218,2238.0,2237.8,0.057]
[1750638184558,7.493,2238.1,2237.8,0.057]
[1750638185945,7.493,2238.1,2237.7,0.44533053]
[1750638186151,0.7519,2238.0,2237.5,0.55]
[1750638186457,0.7519,2238.0,2237.5,0.607]
[1750638186655,0.7519,2238.0,2237.6,0.057]
[1750638187182,0.7519,2238.0,2237.5,0.55]
[1750638187562,0.7519,2238.0,2237.4,10.7857]
[1750638188362,0.7519,2238.0,2237.4,11.61519023]
[1750638188752,0.7519,2238.0,2237.4,10.82949023]
[1750638191086,2.218,2237.9,2237.4,10.82949023]
[1750638191282,0.7519,2238.0,2237.4,10.057]
[1750638191491,7.481,2237.8,2237.4,10.0]
[1750638191780,7.481,2237.8,2237.5,0.057]
[1750638192369,0.7724,2237.7,2236.6,0.057]
[1750638192568,0.7724,2237.4,2236.5,0.44151798]
[1750638192783,2.67639137,2237.3,2236.4,0.831]
[1750638192983,0.7724,2237.1,2236.4,0.44994561]
[1750638193183,7.494,2237.0,2236.1,0.888]
[1750638193384,7.494,2237.0,2236.2,0.90332825]
[1750638194795,0.8177,2236.8,2236.1,0.44273968]
[1750638194976,2.218,2236.7,2235.8,0.8589]
[1750638197092,2.218,2236.7,2235.8,0.057]
[1750638197291,9.688,2236.6,2235.8,0.10171972]
[1750638197496,0.8177,2236.8,2235.9,8.69528251]
[1750638197797,2.2,2236.5,2236.0,0.87970022]
[1750638198377,2.2,2236.5,2236.0,10.0]
[1750638198588,0.7769,2236.4,2235.2,0.8681]
[1750638198791,0.7769,2236.4,2235.4,0.04473171]
[1750638199006,0.7769,2236.4,2235.4,0.48386597]
[1750638199308,0.30168,2236.3,2235.5,1.0540866]
[1750638200576,2.2,2236.6,2235.9,10.057]
[1750638200781,2.2,2236.6,2236.1,8.14528251]
[1750638200980,2.2,2236.6,2236.1,8.59556754]
[1750638201411,2.2,2236.6,2236.1,8.65256754]
[1750638201627,2.2,2236.6,2236.1,8.59556754]
[1750638201918,0.7837,2236.3,2235.3,10.0]
[1750638202126,0.7837,2236.3,2235.4,2.38036825]
[1750638202280,0.7837,2236.3,2235.3,0.45095676]
[1750638202480,0.7837,2236.1,2235.3,10.0]
[1750638202679,9.692,2236.0,2235.3,10.0]
[1750638203484,9.692,2236.0,2235.2,0.057]
[1750638204088,0.0399,2235.9,2235.0,10.0]
[1750638204391,0.7544,2235.8,2235.0,11.95836825]
[1750638204590,0.7544,2235.8,2235.0,12.40793731]
[1750638206215,0.7544,2235.8,2235.0,0.44956906]
[1750638206537,0.7544,2235.8,2234.3,4.77]
[1750638206538,0.7689,2235.4,2234.2,0.7511]
[1750638206743,0.7689,2235.2,2234.2,0.8081]
[1750638206899,2.201,2235.1,2234.2,0.8081]
[1750638207099,3.25058,2235.1,2234.3,11.345361]
[1750638207333,3.25058,2235.1,2234.3,10.0]
[1750638207533,3.25058,2235.1,2234.2,11.70343825]
[1750638208536,3.25058,2235.1,2234.6,0.057]
[1750638208537,2.201,2235.0,2234.6,0.057]
[1750638208742,2.201,2235.0,2234.2,1.25457816]
[1750638208903,0.8202,2234.9,2234.2,0.50347816]
[1750638209098,0.8202,2234.9,2234.2,10.50347816]
[1750638209341,0.8202,2234.9,2233.9,0.7905]
[1750638209342,0.8202,2234.9,2233.9,0.8475]
[1750638209552,0.30212,2234.8,2233.9,2.24522878]
[1750638209836,0.30212,2234.8,2234.0,0.057]
[1750638209837,9.692,2234.7,2234.0,0.057]
[1750638210237,9.692,2234.7,2234.0,0.10175783]
[1750638210440,9.692,2234.7,2234.2,10.0]
[1750638211054,9.692,2234.7,2234.0,0.057]
[1750638211207,10.773432,2234.7,2234.0,0.057]
[1750638211808,0.8058,2234.6,2233.9,0.45369026]
[1750638212023,0.8058,2234.6,2233.8,10.057]
[1750638212461,0.8058,2234.6,2233.8,0.057]
[1750638212607,1.1579232,2234.5,2233.8,0.057]
[1750638212912,1.1579232,2234.5,2233.8,10.057]
[1750638213327,9.688,2234.4,2233.8,10.057]
[1750638213637,9.688,2234.4,2233.8,0.057]
[1750638213850,9.688,2234.4,2233.8,10.057]
[1750638214457,0.7853,2234.3,2233.8,10.0]
[1750638214948,0.7853,2234.3,2233.8,10.49995486]
[1750638215443,1.83263,2234.3,2233.8,10.49995486]
[1750638215646,1.87253,2234.3,2233.8,10.0]
[1750638216129,1.83263,2234.3,2233.5,10.0617]
[1750638217009,9.685,2234.2,2233.8,10.0]
[1750638217205,9.687,2234.9,2234.1,10.7866]
[1750638217457,10.4543,2234.9,2234.1,8.20698251]
[1750638217604,0.7673,2234.7,2233.9,10.0]
[1750638218845,0.8072,2234.7,2233.9,10.0]
[1750638219319,0.8072,2234.7,2233.8,0.0617]
[1750638220339,0.8072,2234.7,2233.9,10.0]
[1750638221357,9.687,2234.6,2234.2,10.0]
[1750638221561,9.687,2234.6,2234.2,10.0617]
[1750638221843,7.485,2234.5,2234.2,10.0]
[1750638222335,7.485,2234.5,2234.2,10.0617]
[1750638223151,0.7673,2234.7,2234.2,11.82069825]
[1750638223309,10.4543,2234.7,2234.2,11.82069825]
[1750638223922,0.0399,2235.4,2234.4,8.14528251]
[1750638223923,0.7862,2235.0,2234.4,8.14528251]
[1750638224252,8.2672,2235.0,2234.4,8.20698251]
[1750638224458,10.38932,2235.0,2234.4,8.20698251]
[1750638224623,8.2672,2235.0,2234.4,8.20698251]
[1750638225021,0.7862,2234.9,2234.0,0.0617]
[1750638226059,0.7862,2234.9,2234.2,10.0]
[1750638226229,0.7862,2234.9,2233.8,0.7805]
[1750638226230,0.7862,2234.9,2234.4,10.48018186]
[1750638227038,0.7862,2234.9,2234.5,0.0617]
[1750638227254,2.90832,2234.9,2234.5,0.0617]
[1750638227556,2.90832,2234.9,2234.4,10.54188186]
[1750638227757,2.90832,2234.9,2234.4,0.0617]
[1750638228259,0.7862,2234.9,2234.6,0.0617]
[1750638228463,0.7862,2234.9,2233.8,5.25712053]
[1750638228464,0.751,2234.7,2233.4,1.345934]
[1750638228660,0.751,2234.5,2233.6,0.0617]
[1750638228860,0.751,2234.5,2233.8,10.0617]
[1750638229065,0.751,2234.5,2234.0,10.48018186]
[1750638229278,0.751,2234.5,2234.3,10.54188186]
[1750638229279,7.495,2234.5,2234.3,10.54188186]
[1750638229488,7.495,2234.5,2234.3,10.48018186]
[1750638229787,7.495,2234.5,2234.1,10.0617]
[1750638229982,7.496,2234.4,2234.1,10.0617]
[1750638230184,7.496,2234.4,2234.2,0.0617]
[1750638230549,0.751,2234.8,2234.2,0.0617]
[1750638230779,9.676,2234.7,2234.2,0.0617]
[1750638231283,9.676,2234.7,2234.1,10.0617]
[1750638232473,0.751,2234.8,2234.1,10.0617]
[1750638232673,7.494,2234.6,2234.2,0.0617]
[1750638236522,0.41902338,2234.5,2234.2,0.0617]
[1750638236688,0.41902338,2234.4,2234.2,0.0617]
[1750638237014,7.494,2234.6,2234.2,0.0617]
[1750638237216,0.41906661,2234.5,2234.2,0.0617]
[1750638237518,0.41906661,2234.4,2234.2,0.0617]
[1750638237678,7.494,2234.6,2234.2,0.0617]
[1750638238080,0.41906222,2234.5,2234.2,0.0617]
[1750638238280,0.41906222,2234.4,2234.2,0.0617]
[1750638238481,7.494,2234.6,2234.2,0.0617]
[1750638238698,0.41910714,2234.5,2234.2,0.0617]
[1750638238899,7.494,2234.6,2234.2,0.0617]
[1750638239109,0.41910074,2234.5,2234.2,0.0617]
[1750638239323,7.476,2234.5,2234.4,0.0617]
[1750638239528,7.89513104,2234.5,2234.4,0.0617]
[1750638239905,7.8951304,2234.5,2234.3,10.48018186]
[1750638240108,7.476,2234.5,2234.3,10.48018186]
[1750638240327,7.476,2234.5,2234.1,10.0]
[1750638240534,7.476,2234.5,2234.2,0.0617]
[1750638242330,7.476,2234.5,2234.1,12.13090819]
[1750638242920,7.476,2234.5,2234.4,0.0617]
[1750638243125,7.476,2234.5,2234.4,10.0617]
[1750638243322,7.469,2234.8,2234.5,0.8573]
[1750638243524,7.469,2234.8,2234.6,10.54218186]
[1750638243816,7.47,2234.9,2234.7,0.062]
[1750638244029,0.4190518,2234.8,2234.7,0.062]
[1750638244217,7.47,2234.9,2234.7,0.062]
[1750638244416,0.8269,2235.3,2234.8,0.062]
[1750638244638,7.88804924,2235.2,2234.7,10.0]
[1750638244841,0.45894924,2235.1,2234.7,0.45348607]
[1750638245116,1.18194924,2235.0,2234.7,0.51548607]
[1750638245330,7.475,2234.9,2234.7,0.51548607]
[1750638245511,7.475,2234.9,2234.5,10.48018186]
[1750638245719,7.475,2234.9,2234.3,0.062]
[1750638246114,7.475,2234.9,2234.4,0.062]
[1750638246533,7.475,2234.9,2234.6,0.062]
[1750638249138,7.475,2234.9,2234.5,10.54218186]
[1750638249648,7.475,2234.9,2234.6,0.062]
[1750638250442,7.475,2234.9,2234.5,10.48018186]
[1750638250644,7.475,2234.9,2234.5,10.54218186]
[1750638250823,7.475,2234.9,2234.6,0.062]
[1750638252350,7.475,2234.9,2234.5,10.54218186]
[1750638253315,8.51669,2234.9,2234.3,0.062]
[1750638253523,0.7629,2235.0,2234.5,10.48018186]
[1750638253741,9.637,2235.1,2234.5,10.48018186]
[1750638254055,9.637,2235.1,2234.6,0.062]
[1750638254403,2.9646,2235.5,2234.9,10.0]
[1750638254545,2.9646,2236.0,2235.4,10.48018186]
[1750638254870,2.9646,2236.0,2235.6,0.062]
[1750638255069,2.178,2236.0,2235.5,10.0]
[1750638255379,0.7971,2236.3,2235.8,0.062]
[1750638255591,0.7971,2236.3,2236.0,10.54218186]
[1750638255747,2.178,2236.4,2236.0,10.54218186]
[1750638257952,0.8309,2236.6,2236.1,0.062]
[1750638258275,0.8309,2236.6,2236.0,10.54218186]
[1750638258453,0.8309,2236.6,2236.0,10.99045663]
[1750638259176,2.152,2236.7,2236.3,10.48018186]
[1750638259347,9.607,2236.7,2236.4,0.062]
[1750638259871,9.607,2236.7,2236.3,10.48018186]
[1750638260238,9.607,2236.7,2236.3,10.54218186]
[1750638260640,9.607,2236.7,2236.3,0.062]
[1750638260951,9.607,2236.7,2236.2,0.801]
[1750638260952,11.7186,2236.7,2236.2,0.062]
[1750638261153,11.7186,2236.7,2236.1,10.0]
[1750638261550,9.607,2236.7,2236.1,10.0]
[1750638261978,2.152,2236.7,2236.2,0.062]
[1750638262278,2.152,2236.7,2236.4,0.062]
[1750638262443,10.756,2236.9,2236.6,10.48018186]
[1750638262644,10.756,2236.9,2236.7,0.062]
[1750638262645,7.448,2236.9,2236.7,0.062]
[1750638264167,7.448,2236.9,2236.6,10.48018186]
[1750638264570,7.448,2236.9,2236.5,0.062]
[1750638265447,2.151,2237.7,2237.1,0.55]
[1750638265689,0.0399,2238.6,2237.7,10.0]
[1750638265690,2.9563,2238.2,2237.7,10.0]
[1750638265982,0.8053,2238.5,2238.1,10.062]
[1750638266281,7.448,2238.4,2238.3,10.48018186]
[1750638266482,7.448,2238.5,2238.3,10.48018186]
[1750638267254,9.598,2238.6,2238.4,0.062]